fUSD/lending_fUSD_20251130
["ID","MTS","AMOUNT","RATE_DAILY","PERIOD"]
[395189229,1764528644650,-500.0,0.00016999,2]
[395189231,1764528644659,-500.0,0.00016999,2]
[395189233,1764528644668,-500.0,0.00016999,2]
[395189235,1764528644677,-500.0,0.00016999,2]
[395189237,1764528644686,-500.0,0.00016999,2]
[395189239,1764528644696,-584.28639426,0.00016999,2]
[395189241,1764528644706,-387.25737973,0.00016999,2]
[395189243,1764528644715,-1459.16090113,0.00016999,2]
[395189245,1764528644726,-519.79569884,0.00016999,2]
[395189247,1764528644735,-500.0,0.00016999,2]
[395189249,1764528644745,-500.0,0.00016999,2]
[395189251,1764528644755,-500.0,0.00016999,2]
[395189253,1764528644764,-500.0,0.00016999,2]
[395189255,1764528644774,-500.0,0.00016999,2]
[395189257,1764528644784,-500.0,0.00016999,2]
[395189259,1764528644794,-500.0,0.00016999,2]
[395189261,1764528644803,-523.46773215,0.00016999,2]
[395189296,1764528645126,-500.0,0.00016999,2]
[395189298,1764528645135,-500.0,0.00016999,2]
[395189300,1764528645145,-500.0,0.00016999,2]
[395189303,1764528645155,-500.0,0.00016999,2]
[395189305,1764528645165,-500.0,0.00016999,2]
[395189307,1764528645179,-500.0,0.00016999,2]
[395189309,1764528645189,-500.0,0.00016999,2]
[395189311,1764528645199,-500.0,0.00016999,2]
[395189313,1764528645209,-500.0,0.00016999,2]
[395189315,1764528645219,-500.0,0.00016999,2]
[395189317,1764528645229,-500.0,0.00016999,2]
[395189320,1764528645239,-500.0,0.00016999,2]
[395189322,1764528645249,-500.0,0.00016999,2]
[395189324,1764528645258,-500.0,0.00016999,2]
[395189326,1764528645268,-443.84257901,0.00016999,2]
[395189328,1764528645278,-300.0,0.00016999,2]
[395189330,1764528645287,-500.0,0.00016999,2]
[395189332,1764528645296,-500.0,0.00016999,2]
[395189334,1764528645306,-500.0,0.00016999,2]
[395189336,1764528645322,-500.0,0.00016999,2]
[395189338,1764528645331,-500.0,0.00016999,2]
[395189340,1764528645341,-500.0,0.00016999,2]
[395189342,1764528645350,-500.0,0.00016999,2]
[395189344,1764528645360,-500.0,0.00016999,2]
[395189346,1764528645369,-500.0,0.00016999,2]
[395189350,1764528645379,-500.0,0.00016999,2]
[395189354,1764528645388,-500.0,0.00016999,2]
[395189356,1764528645397,-500.0,0.00016999,2]
[395189358,1764528645407,-500.0,0.00016999,2]
[395189360,1764528645416,-584.76,0.00016999,2]
[395189362,1764528645426,-300.0,0.00016999,2]
[395189364,1764528645436,-3790147.37759617,0.00017,2]
[395189368,1764528645461,-42907.60704898,0.00017,2]
[395189387,1764528645608,-500.0,0.00015973,2]
[395189389,1764528645617,-1000.0,0.00016521,2]
[395189391,1764528645627,-316.43001113,0.0001671,2]
[395189393,1764528645637,-15243.42787847,0.00017,2]
[395189503,1764528646643,-162283.44593725,0.00017,2]
[395189505,1764528646659,-1764.98939989,0.00017,2]
[395189508,1764528646671,-1962116.15598902,0.00017,2]
[395189510,1764528646680,-5931.49131877,0.00017,2]
[395189512,1764528646689,-1626243.69601528,0.00017,2]
[395189514,1764528646701,-401.780011,0.00017,2]
[395189518,1764528646726,-163.91,0.0001644,2]
[395189520,1764528646736,-277.2040055,0.00017,2]
[395189543,1764528646946,-1920.6610218,0.0001675,2]
[395189545,1764528646955,-498166.79941068,0.00017,2]
[395189547,1764528646966,-349.24300055,0.00017,2]
[395189550,1764528646977,-464.76347741,0.00017,2]
[395189552,1764528646988,-270.17399999,0.00017,2]
[395189563,1764528647138,-2247.4,0.00017,2]
[395189564,1764528647148,-649.09028157,0.00017,2]
[395189565,1764528647162,-2000.0,0.00017,2]
[395190161,1764529831873,-169.55,0.00013175,2]
[395190162,1764529831884,-250.0,0.00013198,2]
[395190163,1764529831896,-266.50437072,0.00013211,2]
[395190164,1764529831920,-257.87596969,0.00013211,2]
[395190166,1764529831938,-1556.32965959,0.00013211,2]
[395190168,1764529831952,-200.0,0.00013221,2]
[395190170,1764529831964,-1320.49,0.00013267,2]
[395190172,1764529831974,-999.0,0.00013281,3]
[395190175,1764529831984,-477.99,0.000133,2]
[395190177,1764529831996,-250.0,0.00013321,2]
[395190179,1764529832007,-1852.42,0.00013395,2]
[395190181,1764529832018,-204.88,0.00013641,2]
[395190183,1764529832029,-3144.13559041,0.00013779,2]
[395190290,1764529838522,-168.61747997,0.00013778,2]
[395190292,1764529838532,-535.92035977,0.00013778,2]
[395190294,1764529838541,-471.43891664,0.00013778,2]
[395190296,1764529838554,-585.26946733,0.00013778,2]
[395190298,1764529838564,-535.92035977,0.00013778,2]
[395190300,1764529838573,-500.0,0.00013778,2]
[395190302,1764529838583,-535.92035977,0.00013778,2]
[395190304,1764529838593,-535.92035977,0.00013778,2]
[395190306,1764529838603,-535.92035977,0.00013778,2]
[395190308,1764529838612,-535.92035977,0.00013778,2]
[395190310,1764529838622,-535.92035977,0.00013778,2]
[395190312,1764529838632,-535.92035977,0.00013778,2]
[395190314,1764529838641,-535.92035977,0.00013778,2]
[395190316,1764529838650,-535.92035977,0.00013778,2]
[395190318,1764529838659,-535.92035977,0.00013778,2]
[395190320,1764529838670,-535.92035977,0.00013778,2]
[395190322,1764529838679,-535.92035977,0.00013778,2]
[395190324,1764529838688,-535.92035977,0.00013778,2]
[395190326,1764529838697,-535.92035977,0.00013778,2]
[395190328,1764529838707,-535.92035977,0.00013778,2]
[395190330,1764529838717,-535.92035977,0.00013778,2]
[395190332,1764529838726,-535.92035977,0.00013778,2]
[395190334,1764529838736,-535.92035977,0.00013778,2]
[395190336,1764529838746,-535.92035977,0.00013778,2]
[395190338,1764529838756,-535.92035977,0.00013778,2]
[395190340,1764529838765,-535.92035977,0.00013778,2]
[395190343,1764529838775,-535.92035977,0.00013778,2]
[395190345,1764529838784,-535.92035977,0.00013778,2]
[395190347,1764529838794,-535.92035977,0.00013778,2]
[395190348,1764529838805,-535.92035977,0.00013778,2]
[395190350,1764529838816,-535.92035977,0.00013778,2]
[395190352,1764529838825,-535.92035977,0.00013778,2]
[395190354,1764529838834,-535.92035977,0.00013778,2]
[395190356,1764529838844,-535.92035977,0.00013778,2]
[395190358,1764529838854,-535.92035977,0.00013778,2]
[395190360,1764529838864,-535.92035977,0.00013778,2]
[395190362,1764529838874,-535.92035977,0.00013778,2]
[395190364,1764529838888,-535.92035977,0.00013778,2]
[395190367,1764529838898,-463.68837681,0.00013778,2]
[395190370,1764529838918,-72.23198296,0.00013778,2]
[395190372,1764529838927,-535.92035977,0.00013778,2]
[395190374,1764529838937,-286.11653977,0.00013778,2]
[395190376,1764529838953,-249.80382,0.00013778,2]
[395190378,1764529838962,-535.92035977,0.00013778,2]
[395190380,1764529838972,-535.92035977,0.00013778,2]
[395190382,1764529838982,-114.66761222,0.00013778,2]
[395190384,1764529838994,-421.25274755,0.00013778,2]
[395190386,1764529839003,-535.92035977,0.00013778,2]
[395190388,1764529839013,-535.92035977,0.00013778,2]
[395190390,1764529839022,-535.92035977,0.00013778,2]
[395190392,1764529839031,-535.92035977,0.00013778,2]
[395190394,1764529839040,-535.92035977,0.00013778,2]
[395190396,1764529839050,-535.92035977,0.00013778,2]
[395190398,1764529839059,-193.0014693,0.00013778,2]
[395190400,1764529839071,-342.91889047,0.00013778,2]
[395190402,1764529839080,-535.92035977,0.00013778,2]
[395190405,1764529839090,-535.92035977,0.00013778,2]
[395190407,1764529839099,-535.92035977,0.00013778,2]
[395190409,1764529839109,-535.92035977,0.00013778,2]
[395190411,1764529839118,-535.92035977,0.00013778,2]
[395190413,1764529839128,-535.92035977,0.00013778,2]
[395190415,1764529839140,-535.92035977,0.00013778,2]
[395190417,1764529839149,-535.92035977,0.00013778,2]
[395190419,1764529839159,-535.92035977,0.00013778,2]
[395190420,1764529839169,-535.92035977,0.00013778,2]
[395190422,1764529839179,-535.92035977,0.00013778,2]
[395190424,1764529839189,-535.92035977,0.00013778,2]
[395190426,1764529839199,-11441.87842624,0.00013779,2]
[395190428,1764529839209,-594.0289137,0.00013784,2]
[395190430,1764529839220,-300.0,0.00013784,2]
[395190432,1764529839230,-300.0,0.00013784,2]
[395190434,1764529839239,-1200.0,0.00013784,2]
[395190436,1764529839249,-760000.0,0.00013785,2]
[395190438,1764529839258,-150.0,0.00013879,2]
[395190440,1764529839269,-702.0,0.0001388,2]
[395190442,1764529839279,-166.66,0.0001388,2]
[395190444,1764529839289,-1186.31,0.00013882,2]
[395190446,1764529839300,-2354.6523,0.00013883,2]
[395190448,1764529839310,-1098.927,0.00013885,2]
[395190450,1764529839320,-1459.16090113,0.00013885,2]
[395190452,1764529839330,-151.0,0.00013974,2]
[395190454,1764529839339,-151.0,0.00013974,2]
[395190456,1764529839349,-151.0,0.00013974,2]
[395190457,1764529839359,-151.0,0.00013974,2]
[395190458,1764529839369,-500.0,0.00013974,2]
[395190459,1764529839379,-151.0,0.00013974,2]
[395190460,1764529839388,-500.0,0.00013974,2]
[395190461,1764529839397,-151.0,0.00013974,2]
[395190462,1764529839407,-151.0,0.00013974,2]
[395190463,1764529839416,-500.0,0.00013974,2]
[395190464,1764529839426,-151.0,0.00013974,2]
[395190465,1764529839435,-500.0,0.00013974,2]
[395190466,1764529839444,-200.0,0.00013974,2]
[395190467,1764529839454,-500.0,0.00013974,2]
[395190468,1764529839464,-151.0,0.00013974,2]
[395190469,1764529839473,-500.0,0.00013974,2]
[395190470,1764529839482,-151.0,0.00013974,2]
[395190471,1764529839491,-500.0,0.00013974,2]
[395190472,1764529839501,-151.0,0.00013974,2]
[395190473,1764529839510,-500.0,0.00013974,2]
[395190474,1764529839520,-151.0,0.00013974,2]
[395190475,1764529839540,-500.0,0.00013974,2]
[395190476,1764529839550,-151.0,0.00013974,2]
[395190477,1764529839560,-500.0,0.00013974,2]
[395190478,1764529839569,-500.0,0.00013974,2]
[395190479,1764529839577,-500.0,0.00013974,2]
[395190480,1764529839586,-500.0,0.00013974,2]
[395190481,1764529839595,-500.0,0.00013974,2]
[395190482,1764529839984,-500.0,0.00013974,2]
[395190483,1764529839995,-500.0,0.00013974,2]
[395190484,1764529840005,-500.0,0.00013974,2]
[395190485,1764529840017,-500.0,0.00013974,2]
[395190486,1764529840027,-500.0,0.00013974,2]
[395190487,1764529840036,-500.0,0.00013974,2]
[395190488,1764529840046,-500.0,0.00013974,2]
[395190489,1764529840059,-500.0,0.00013974,2]
[395190490,1764529840070,-500.0,0.00013974,2]
[395190491,1764529840084,-500.0,0.00013974,2]
[395190492,1764529840094,-500.0,0.00013974,2]
[395190493,1764529840103,-500.0,0.00013974,2]
[395190494,1764529840113,-200.0,0.00013974,2]
[395190495,1764529840123,-500.0,0.00013974,2]
[395190496,1764529840132,-151.0,0.00013974,2]
[395190497,1764529840141,-151.0,0.00013974,2]
[395190498,1764529840151,-151.0,0.00013974,2]
[395190499,1764529840161,-151.0,0.00013974,2]
[395190500,1764529840171,-151.0,0.00013974,2]
[395190501,1764529840181,-151.0,0.00013974,2]
[395190502,1764529840191,-151.0,0.00013974,2]
[395190503,1764529840200,-151.0,0.00013974,2]
[395190504,1764529840210,-200.0,0.00013974,2]
[395190505,1764529840220,-151.0,0.00013974,2]
[395190506,1764529840232,-151.0,0.00013974,2]
[395190507,1764529840244,-151.0,0.00013974,2]
[395190508,1764529840261,-151.0,0.00013974,2]
[395190509,1764529840272,-285.24487916,0.00013974,2]
[395190510,1764529840282,-500.0,0.00013982,2]
[395190511,1764529840292,-500.0,0.00013982,2]
[395190512,1764529840302,-500.0,0.00013982,2]
[395190513,1764529840312,-500.0,0.00013982,2]
[395190514,1764529840323,-500.0,0.00013982,2]
[395190515,1764529840333,-500.0,0.00013982,2]
[395190516,1764529840344,-500.0,0.00013982,2]
[395190517,1764529840357,-500.0,0.00013982,2]
[395190518,1764529840368,-500.0,0.00013982,2]
[395190519,1764529840377,-500.0,0.00013982,2]
[395190520,1764529840387,-500.0,0.00013982,2]
[395190521,1764529840396,-500.0,0.00013982,2]
[395190522,1764529840406,-500.0,0.00013982,2]
[395190523,1764529840416,-500.0,0.00013982,2]
[395190524,1764529840426,-500.0,0.00013982,2]
[395190525,1764529840435,-500.0,0.00013982,2]
[395190526,1764529840445,-500.0,0.00013982,2]
[395190527,1764529840456,-500.0,0.00013982,2]
[395190528,1764529840465,-500.0,0.00013982,2]
[395190529,1764529840475,-500.0,0.00013982,2]
[395190530,1764529840485,-500.0,0.00013982,2]
[395190531,1764529840495,-500.0,0.00013982,2]
[395190532,1764529840505,-500.0,0.00013982,2]
[395190533,1764529840515,-500.0,0.00013982,2]
[395190534,1764529840524,-500.0,0.00013982,2]
[395190535,1764529840534,-500.0,0.00013982,2]
[395190536,1764529840543,-500.0,0.00013982,2]
[395190537,1764529840557,-500.0,0.00013982,2]
[395190538,1764529840566,-500.0,0.00013982,2]
[395190540,1764529840575,-500.0,0.00013982,2]
[395190541,1764529840585,-648.97949028,0.00013982,2]
[395190542,1764529840594,-512.38673853,0.00013982,2]
[395190545,1764529840604,-600.0,0.00013983,2]
[395190547,1764529840613,-4831.5096,0.00013991,2]
[395190549,1764529840623,-1000.0,0.00013991,2]
[395190551,1764529840632,-500.0,0.0001409,2]
[395190553,1764529840641,-500.0,0.0001409,2]
[395190555,1764529840651,-150.52756484,0.0001409,2]
[395190557,1764529840660,-627.95,0.0001409,2]
[395190559,1764529840669,-627.95,0.0001409,2]
[395190561,1764529840679,-627.95,0.0001409,2]
[395190563,1764529840688,-500.0,0.0001409,2]
[395190565,1764529840698,-500.0,0.0001409,2]
[395190567,1764529840708,-500.0,0.0001409,2]
[395190569,1764529840717,-500.0,0.0001409,2]
[395190571,1764529840726,-500.0,0.0001409,2]
[395190573,1764529840737,-500.0,0.0001409,2]
[395190575,1764529840749,-500.0,0.0001409,2]
[395190577,1764529840759,-500.0,0.0001409,2]
[395190579,1764529840768,-323.68835638,0.0001409,2]
[395190581,1764529840778,-14586.01401659,0.00014126,2]
[395190583,1764529840787,-1186.31,0.00014156,2]
[395190585,1764529840797,-600.0,0.00014257,2]
[395190587,1764529840811,-1000.0,0.0001429,2]
[395190589,1764529840820,-166.66,0.00014339,2]
[395190591,1764529840830,-1186.31,0.0001443,2]
[395190593,1764529840840,-14586.01401659,0.00014473,2]
[395190596,1764529840850,-250.0,0.00014493,2]
[395190598,1764529840860,-195.0,0.00014493,2]
[395190600,1764529840870,-300.0,0.00014493,2]
[395190602,1764529840879,-300.0,0.00014493,2]
[395190604,1764529840889,-195.0,0.00014493,2]
[395190606,1764529840898,-195.0,0.00014493,2]
[395190608,1764529840907,-195.0,0.00014493,2]
[395190610,1764529840917,-151.0,0.00014521,2]
[395190612,1764529840926,-200.0,0.00014522,2]
[395190614,1764529840937,-500.0,0.00014522,2]
[395190616,1764529840949,-200.0,0.00014522,2]
[395190618,1764529840959,-600.0,0.00014531,2]
[395190620,1764529840969,-10952.35846682,0.00014553,2]
[395190622,1764529840979,-1186.31,0.00014704,2]
[395190624,1764529840989,-166.66,0.00014797,2]
[395190627,1764529840999,-600.0,0.00014805,2]
[395190629,1764529841009,-14586.01401659,0.00014819,2]
[395190631,1764529841019,-169.55,0.00014822,2]
[395190633,1764529841029,-10952.35846682,0.00014889,2]
[395190635,1764529841038,-500.0,0.0001496,2]
[395190637,1764529841048,-1186.31,0.00014978,2]
[395190639,1764529841057,-255.0,0.00015003,2]
[395190641,1764529841067,-151.0,0.00015069,2]
[395190643,1764529841076,-200.0,0.0001507,2]
[395190645,1764529841086,-500.0,0.0001507,2]
[395190647,1764529841095,-200.0,0.0001507,2]
[395190649,1764529841105,-600.0,0.00015079,2]
[395190651,1764529841115,-420.0,0.00015104,2]
[395190653,1764529841124,-420.0,0.00015104,2]
[395190655,1764529841134,-1680.0,0.00015162,2]
[395190657,1764529841143,-14586.01401659,0.00015166,2]
[395190659,1764529841153,-445.67522641,0.0001521,2]
[395190661,1764529841162,-10952.35846682,0.00015224,2]
[395190663,1764529841172,-1186.31,0.00015252,2]
[395190665,1764529841181,-166.66,0.00015255,2]
[395190667,1764529841191,-627.95,0.00015283,2]
[395190669,1764529841202,-150.0,0.00015288,2]
[395190672,1764529841211,-150.0,0.00015288,2]
[395190674,1764529841220,-150.0,0.00015288,2]
[395190676,1764529841230,-150.0,0.00015288,2]
[395190678,1764529841240,-150.0,0.00015288,2]
[395190680,1764529841250,-150.0,0.00015288,2]
[395190682,1764529841260,-157.84068384,0.00015288,2]
[395190684,1764529841270,-150.0,0.00015288,2]
[395190686,1764529841280,-150.37128175,0.00015288,2]
[395190688,1764529841289,-150.0,0.00015288,2]
[395190690,1764529841299,-150.0,0.00015288,2]
[395190692,1764529841308,-150.0,0.00015288,2]
[395190694,1764529841318,-150.0,0.00015288,2]
[395190696,1764529841328,-150.0,0.0001531,2]
[395190698,1764529841337,-9999.99,0.0001531,2]
[395190699,1764529841348,-9999.99,0.0001531,2]
[395190701,1764529841358,-9999.99,0.0001531,2]
[395190703,1764529841368,-2116.57,0.0001531,2]
[395190705,1764529841378,-902.11,0.0001531,2]
[395190707,1764529841387,-150.99,0.0001531,2]
[395190709,1764529841397,-9999.99,0.0001531,2]
[395190711,1764529841406,-9999.99,0.0001531,2]
[395190712,1764529841415,-1289.46,0.0001531,2]
[395190715,1764529841425,-299.99,0.0001531,2]
[395190717,1764529841436,-327.72,0.0001531,2]
[395190719,1764529841446,-30433.84,0.0001531,2]
[395190721,1764529841455,-2959.98,0.0001531,2]
[395190723,1764529841465,-999.99,0.0001531,2]
[395190725,1764529841475,-1172.22,0.0001531,2]
[395190726,1764529841485,-1728.71,0.0001531,2]
[395190728,1764529841495,-150.99,0.0001531,2]
[395190731,1764529841504,-150.0,0.00015332,2]
[395190733,1764529841514,-600.0,0.00015353,2]
[395190735,1764529841523,-150.0,0.00015353,2]
[395190736,1764529841532,-150.0,0.00015354,2]
[395190738,1764529841542,-150.0,0.00015369,2]
[395190740,1764529841553,-150.0,0.00015369,2]
[395190743,1764529841563,-150.0,0.00015376,2]
[395190745,1764529841573,-150.0,0.00015382,2]
[395190747,1764529841582,-150.0,0.00015388,2]
[395190749,1764529841591,-500.0,0.00015395,2]
[395190751,1764529841601,-500.0,0.00015395,2]
[395190753,1764529841611,-150.0,0.00015398,2]
[395190755,1764529841620,-150.0,0.00015409,2]
[395190757,1764529841630,-150.0,0.00015418,2]
[395190759,1764529841639,-150.0,0.0001542,2]
[395190761,1764529841649,-150.0,0.00015442,2]
[395190763,1764529841659,-150.0,0.00015449,2]
[395190765,1764529841668,-150.0,0.00015449,2]
[395190767,1764529841677,-150.0,0.00015458,2]
[395190769,1764529841686,-150.0,0.00015464,2]
[395190771,1764529841695,-150.0,0.00015476,2]
[395190773,1764529841706,-150.0,0.00015484,2]
[395190775,1764529841716,-150.0,0.00015486,2]
[395190777,1764529841725,-150.0,0.00015488,2]
[395190779,1764529841734,-150.0,0.00015508,2]
[395190781,1764529841743,-14586.01401659,0.00015513,2]
[395190783,1764529841753,-1186.31,0.00015526,2]
[395190785,1764529841762,-150.0,0.0001553,2]
[395190787,1764529841771,-150.0,0.0001553,2]
[395190789,1764529841781,-150.0,0.0001553,2]
[395190791,1764529841791,-150.0,0.0001553,2]
[395190793,1764529841801,-150.0,0.00015549,2]
[395190796,1764529841815,-150.0,0.00015552,2]
[395190798,1764529841824,-10952.35846682,0.00015559,2]
[395190800,1764529841835,-500.0,0.0001556,2]
[395190802,1764529841845,-500.0,0.0001556,2]
[395190804,1764529841857,-500.0,0.0001556,2]
[395190806,1764529841867,-500.0,0.0001556,2]
[395190808,1764529841877,-500.0,0.0001556,2]
[395190810,1764529841888,-500.0,0.0001556,2]
[395190812,1764529841899,-500.0,0.0001556,2]
[395190814,1764529841908,-452.24725783,0.0001556,2]
[395190816,1764529841918,-150.0,0.00015571,2]
[395190818,1764529841928,-150.0,0.00015574,2]
[395190820,1764529841937,-150.0,0.00015587,2]
[395190822,1764529841947,-150.0,0.00015597,2]
[395190824,1764529841956,-150.0,0.00015611,2]
[395190826,1764529841965,-150.0,0.00015611,2]
[395190828,1764529841975,-150.0,0.00015614,2]
[395190830,1764529841984,-151.0,0.00015617,2]
[395190832,1764529841994,-200.0,0.00015618,2]
[395190834,1764529842003,-500.0,0.00015618,2]
[395190836,1764529842012,-200.0,0.00015618,2]
[395190838,1764529842021,-150.0,0.00015619,2]
[395190840,1764529842030,-600.0,0.00015627,2]
[395190842,1764529842039,-150.0,0.00015627,2]
[395190844,1764529842048,-150.0,0.00015641,2]
[395190846,1764529842058,-150.0,0.00015652,2]
[395190848,1764529842069,-150.0,0.00015663,2]
[395190850,1764529842078,-150.0,0.00015665,2]
[395190852,1764529842087,-150.0,0.0001568,2]
[395190854,1764529842097,-150.0,0.00015685,2]
[395190856,1764529842108,-150.0,0.00015687,2]
[395190858,1764529842118,-150.0,0.00015692,2]
[395190860,1764529842127,-150.0,0.00015692,2]
[395190863,1764529842137,-150.0,0.00015707,2]
[395190865,1764529842147,-150.0,0.00015712,2]
[395190867,1764529842156,-150.0,0.00015712,2]
[395190869,1764529842166,-150.0,0.00015712,2]
[395190871,1764529842175,-166.66,0.00015713,2]
[395190873,1764529842185,-150.0,0.00015729,2]
[395190875,1764529842195,-150.0,0.00015745,2]
[395190877,1764529842204,-150.0,0.00015751,2]
[395190879,1764529842214,-150.0,0.0001576,2]
[395190881,1764529842223,-150.0,0.00015773,2]
[395190883,1764529842234,-150.0,0.00015773,2]
[395190885,1764529842243,-150.0,0.00015773,2]
[395190887,1764529842253,-150.0,0.00015773,2]
[395190889,1764529842263,-150.0,0.00015787,2]
[395190891,1764529842272,-150.0,0.00015795,2]
[395190893,1764529842282,-150.0,0.00015797,2]
[395190895,1764529842292,-1186.38,0.000158,2]
[395190897,1764529842302,-150.0,0.0001581,2]
[395190899,1764529842311,-150.0,0.00015817,2]
[395190901,1764529842320,-150.0,0.00015839,2]
[395190903,1764529842330,-150.0,0.00015854,2]
[395190905,1764529842340,-150.0,0.00015854,2]
[395190907,1764529842349,-150.0,0.00015854,2]
[395190909,1764529842358,-14586.01401659,0.0001586,2]
[395190911,1764529842367,-150.0,0.00015861,2]
[395190913,1764529842377,-150.0,0.00015876,2]
[395190915,1764529842387,-150.0,0.00015883,2]
[395190917,1764529842397,-150.0,0.00015887,2]
[395190919,1764529842408,-150.0,0.00015894,2]
[395190921,1764529842417,-10952.35846682,0.00015894,2]
[395190923,1764529842427,-500.0,0.00015899,2]
[395190924,1764529842437,-1112.44010601,0.000159,2]
[395190926,1764529842446,-1112.44010596,0.000159,2]
[395190927,1764529842457,-1112.44010596,0.000159,2]
[395190929,1764529842467,-600.0,0.00015901,2]
[395190931,1764529842476,-150.0,0.00015905,2]
[395190933,1764529842485,-150.0,0.00015925,2]
[395190936,1764529842495,-150.0,0.00015927,2]
[395190938,1764529842504,-150.0,0.00015935,2]
[395190940,1764529842514,-150.0,0.00015935,2]
[395190942,1764529842523,-150.0,0.00015941,2]
[395190944,1764529842532,-150.0,0.00015948,2]
[395190947,1764529842542,-150.0,0.00015949,2]
[395190950,1764529842551,-150.0,0.00015967,2]
[395190952,1764529842561,-150.0,0.00015972,2]
[395190954,1764529842571,-172.14260256,0.00015973,2]
[395190956,1764529842581,-500.0,0.00015973,2]
[395190958,1764529842590,-500.0,0.00015973,2]
[395190960,1764529842599,-565.90233254,0.00015973,2]
[395190962,1764529842609,-507.35080236,0.00015973,2]
[395190964,1764529842618,-161.07388452,0.00015973,2]
[395190966,1764529842627,-501.42223441,0.00015973,2]
[395190968,1764529842637,-500.0,0.00015973,2]
[395190970,1764529842646,-500.0,0.00015973,2]
[395190972,1764529842655,-500.0,0.00015973,2]
[395190974,1764529842665,-160.07187961,0.00015973,2]
[395190976,1764529842675,-500.0,0.00015973,2]
[395190978,1764529842685,-500.0,0.00015973,2]
[395190980,1764529842694,-166.65415748,0.00015973,2]
[395190982,1764529842705,-622.74851177,0.00015973,2]
[395190984,1764529842715,-500.0,0.00015973,2]
[395190986,1764529842724,-500.0,0.00015973,2]
[395190988,1764529842734,-500.0,0.00015973,2]
[395190990,1764529842744,-500.0,0.00015973,2]
[395190992,1764529842753,-157.2860755,0.00015973,2]
[395190994,1764529842763,-500.0,0.00015973,2]
[395190996,1764529842772,-500.0,0.00015973,2]
[395190998,1764529842781,-500.0,0.00015973,2]
[395191000,1764529842791,-201.11548058,0.00015973,2]
[395191002,1764529842801,-500.0,0.00015973,2]
[395191004,1764529842814,-500.0,0.00015973,2]
[395191006,1764529842823,-500.0,0.00015973,2]
[395191008,1764529842833,-500.0,0.00015973,2]
[395191010,1764529842842,-500.0,0.00015973,2]
[395191012,1764529842851,-500.0,0.00015973,2]
[395191014,1764529842861,-500.0,0.00015973,2]
[395191016,1764529842871,-4211.77765298,0.00015973,2]
[395191018,1764529842881,-150.0,0.00015987,2]
[395191020,1764529842890,-150.0,0.00015994,2]
[395191022,1764529842900,-150.0,0.00016006,2]
[395191024,1764529842909,-150.0,0.00016016,2]
[395191026,1764529842918,-150.0,0.00016016,2]
[395191028,1764529842927,-150.0,0.00016016,2]
[395191030,1764529842936,-150.0,0.00016016,2]
[395191032,1764529842946,-150.0,0.00016038,2]
[395191034,1764529842955,-150.0,0.00016043,2]
[395191036,1764529842965,-150.0,0.0001606,2]
[395191038,1764529842974,-150.0,0.00016072,2]
[395191040,1764529842983,-150.0,0.00016082,2]
[395191042,1764529842992,-150.0,0.00016087,2]
[395191044,1764529843001,-150.0,0.00016097,2]
[395191046,1764529843011,-150.0,0.00016097,2]